fUST/lending_fUST_20241115
["ID","MTS","AMOUNT","RATE_DAILY","PERIOD"]
[342250412,1731654645302,-527.12,0.00014794,2]
[342250413,1731654645311,-518.6,0.00014794,2]
[342250414,1731654645320,-500.0,0.00014794,2]
[342250415,1731654645329,-500.0,0.00014794,2]
[342250416,1731654645339,-691.77,0.00014794,2]
[342250417,1731654645348,-500.0,0.00014794,2]
[342250418,1731654645357,-500.0,0.00014794,2]
[342250419,1731654645367,-500.0,0.00014794,2]
[342250420,1731654645376,-500.0,0.00014794,2]
[342250421,1731654645385,-500.0,0.00014794,2]
[342250422,1731654645395,-516.72,0.00014794,2]
[342250423,1731654645404,-500.0,0.00014794,2]
[342250424,1731654645413,-500.0,0.00014794,2]
[342250425,1731654645422,-511.14656472,0.00014794,2]
[342250426,1731654645433,-2110.93,0.00014794,2]
[342250427,1731654645442,-678.65,0.00014794,2]
[342250428,1731654645451,-500.0,0.00014794,2]
[342250429,1731654645460,-500.0,0.00014794,2]
[342250430,1731654645469,-500.0,0.00014794,2]
[342250431,1731654645480,-500.0,0.00014794,2]
[342250432,1731654645489,-500.0,0.00014794,2]
[342250433,1731654645501,-1033.95,0.00014794,2]
[342250434,1731654645510,-1306.17,0.00014794,2]
[342250435,1731654645520,-1263.29,0.00014794,2]
[342250436,1731654645529,-500.0,0.00014794,2]
[342250437,1731654645539,-2127.12,0.00014794,2]
[342250438,1731654645548,-500.0,0.00014794,2]
[342250439,1731654645557,-500.0,0.00014794,2]
[342250441,1731654645567,-512.52,0.00014794,2]
[342250442,1731654645577,-500.0,0.00014794,2]
[342250443,1731654645587,-500.0,0.00014794,2]
[342250444,1731654645596,-1629.51,0.00014794,2]
[342250446,1731654645605,-1431.45,0.00014794,2]
[342250448,1731654645615,-826.96,0.00014794,2]
[342250449,1731654645624,-571.98,0.00014794,2]
[342250450,1731654645633,-500.0,0.00014794,2]
[342250451,1731654645642,-588.9,0.00014794,2]
[342250452,1731654645651,-584.06,0.00014794,2]
[342250453,1731654645660,-604.41,0.00014794,2]
[342250454,1731654645670,-500.0,0.00014794,2]
[342250455,1731654645679,-500.0,0.00014794,2]
[342250456,1731654645689,-500.0,0.00014794,2]
[342250457,1731654645698,-500.0,0.00014794,2]
[342250458,1731654645709,-500.0,0.00014794,2]
[342250459,1731654645718,-552.59,0.00014794,2]
[342250460,1731654645727,-500.0,0.00014794,2]
[342250461,1731654645739,-500.0,0.00014794,2]
[342250462,1731654645749,-500.0,0.00014794,2]
[342250463,1731654645759,-500.0,0.00014794,2]
[342250465,1731654645768,-500.0,0.00014794,2]
[342250467,1731654645778,-500.0,0.00014794,2]
[342250468,1731654645788,-700.9,0.00014794,2]
[342250469,1731654645798,-500.0,0.00014794,2]
[342250470,1731654645808,-500.0,0.00014794,2]
[342250471,1731654645818,-500.0,0.00014794,2]
[342250472,1731654645827,-2107.61,0.00014794,2]
[342250473,1731654645837,-500.0,0.00014794,2]
[342250474,1731654645846,-1624.89,0.00014794,2]
[342250475,1731654645856,-1124.9,0.00014794,2]
[342250476,1731654645866,-500.0,0.00014794,2]
[342250477,1731654645876,-3048.96,0.00014794,2]
[342250478,1731654645886,-351.91765379,0.00014794,2]
[342250479,1731654645895,-568.96,0.00014794,2]
[342250480,1731654645905,-813.77,0.00014794,2]
[342250481,1731654645916,-500.0,0.00014794,2]
[342250482,1731654645926,-871.65,0.00014794,2]
[342250483,1731654645936,-689.22,0.00014794,2]
[342250484,1731654645945,-500.0,0.00014794,2]
[342250485,1731654645955,-340.12337781,0.00014794,2]
[342250486,1731654645964,-1242.67,0.00014794,2]
[342250487,1731654645973,-3267.27,0.00014794,2]
[342250488,1731654645985,-944.33,0.00014794,2]
[342250489,1731654645995,-642.35,0.00014794,2]
[342250490,1731654646006,-859.496854,0.00014794,2]
[342250491,1731654646016,-859.496854,0.00014794,2]
[342250493,1731654646025,-500.0,0.00014794,2]
[342250495,1731654646036,-500.0,0.00014794,2]
[342250496,1731654646045,-6369.13,0.00014794,2]
[342250497,1731654646055,-151.0,0.00014794,2]
[342250498,1731654646064,-1669.53,0.00014794,2]
[342250499,1731654646076,-500.0,0.00014794,2]
[342250500,1731654646086,-860.9,0.00014794,2]
[342250501,1731654646096,-151.0,0.00014794,2]
[342250502,1731654646106,-182.332783,0.00014794,2]
[342250503,1731654646115,-500.0,0.00014794,2]
[342250504,1731654646125,-500.0,0.00014794,2]
[342250505,1731654646135,-716.58,0.00014794,2]
[342250506,1731654646145,-610.43,0.00014794,2]
[342250507,1731654646155,-182.332783,0.00014794,2]
[342250508,1731654646164,-500.0,0.00014794,2]
[342250509,1731654646174,-500.0,0.00014794,2]
[342250510,1731654646183,-6076.35,0.00014794,2]
[342250511,1731654646193,-532.03,0.00014794,2]
[342250512,1731654646203,-151.0,0.00014794,2]
[342250513,1731654646212,-552.47,0.00014794,2]
[342250514,1731654646223,-814.89,0.00014794,2]
[342250515,1731654646234,-3259.65,0.00014794,2]
[342250516,1731654646244,-1510.18,0.00014794,2]
[342250517,1731654646253,-519.43,0.00014794,2]
[342250518,1731654646263,-20517.05,0.00014794,2]
[342250519,1731654646273,-815.29,0.00014794,2]
[342250520,1731654646283,-3232.98,0.00014794,2]
[342250521,1731654646293,-212.277673,0.00014794,2]
[342250522,1731654646303,-212.277673,0.00014794,2]
[342250523,1731654646313,-500.0,0.00014794,2]
[342250524,1731654646322,-20385.96,0.00014794,2]
[342250525,1731654646332,-500.0,0.00014794,2]
[342250526,1731654646342,-233.160755,0.00014794,2]
[342250527,1731654646351,-500.0,0.00014794,2]
[342250528,1731654646361,-542.01,0.00014794,2]
[342250529,1731654646371,-233.160755,0.00014794,2]
[342250530,1731654646381,-198.33764883,0.00014794,2]
[342250531,1731654646390,-500.0,0.00014794,2]
[342250532,1731654646400,-1586.05,0.00014794,2]
[342250533,1731654646409,-514.35,0.00014794,2]
[342250534,1731654646419,-150.112233,0.000149,2]
[342250535,1731654646429,-153.477,0.0001496,2]
[342250536,1731654646438,-200.0,0.0001498,2]
[342250537,1731654646448,-2651.48369773,0.00014999,2]
[342250538,1731654646458,-39105.54179377,0.00015,2]
[342250539,1731654646467,-400.0,0.00015,4]
[342250540,1731654646477,-1219.9170618,0.00015,2]
[342250541,1731654646490,-859.496854,0.00015,2]
[342250542,1731654646503,-859.496854,0.00015,2]
[342250543,1731654646513,-151.0,0.00015,2]
[342250544,1731654646523,-556.94162842,0.00015067,2]
[342250545,1731654646533,-197.19730306,0.00015068,2]
[342250546,1731654646544,-569.06557065,0.00015068,2]
[342250547,1731654646554,-500.0,0.00015068,2]
[342250548,1731654646564,-579.73,0.00015068,2]
[342250549,1731654646574,-500.0,0.00015068,2]
[342250550,1731654646584,-500.0,0.00015068,2]
[342250551,1731654646594,-577.82379625,0.00015068,2]
[342250552,1731654646604,-500.0,0.00015068,2]
[342250553,1731654646614,-405.35202735,0.00015068,2]
[342250554,1731654646624,-279.24404725,0.00015068,2]
[342250555,1731654646634,-500.0,0.00015068,2]
[342250556,1731654646644,-503.96,0.00015068,2]
[342250557,1731654646653,-528.3,0.00015068,2]
[342250558,1731654646662,-527.12,0.00015068,2]
[342250559,1731654646672,-518.6,0.00015068,2]
[342250560,1731654646683,-500.0,0.00015068,2]
[342250561,1731654646693,-500.0,0.00015068,2]
[342250562,1731654646702,-691.77,0.00015068,2]
[342250563,1731654646712,-500.0,0.00015068,2]
[342250564,1731654646722,-500.0,0.00015068,2]
[342250565,1731654646734,-500.0,0.00015068,2]
[342250566,1731654646743,-500.0,0.00015068,2]
[342250567,1731654646753,-500.0,0.00015068,2]
[342250568,1731654646763,-516.72,0.00015068,2]
[342250569,1731654646773,-500.0,0.00015068,2]
[342250570,1731654646782,-500.0,0.00015068,2]
[342250571,1731654646792,-2110.93,0.00015068,2]
[342250572,1731654646803,-678.65,0.00015068,2]
[342250573,1731654646813,-500.0,0.00015068,2]
[342250574,1731654646823,-500.0,0.00015068,2]
[342250575,1731654646833,-500.0,0.00015068,2]
[342250576,1731654646843,-500.0,0.00015068,2]
[342250577,1731654646854,-500.0,0.00015068,2]
[342250578,1731654646864,-1033.95,0.00015068,2]
[342250579,1731654646875,-1306.17,0.00015068,2]
[342250580,1731654646885,-1263.29,0.00015068,2]
[342250581,1731654646895,-500.0,0.00015068,2]
[342250582,1731654646905,-2127.12,0.00015068,2]
[342250583,1731654646916,-500.0,0.00015068,2]
[342250584,1731654646926,-492.55345582,0.00015068,2]
[342250585,1731654646936,-512.52,0.00015068,2]
[342250586,1731654646945,-500.0,0.00015068,2]
[342250587,1731654646955,-500.0,0.00015068,2]
[342250588,1731654646965,-1629.51,0.00015068,2]
[342250589,1731654646974,-1431.45,0.00015068,2]
[342250590,1731654646989,-826.96,0.00015068,2]
[342250591,1731654646998,-571.98,0.00015068,2]
[342250592,1731654647008,-500.0,0.00015068,2]
[342250593,1731654647024,-588.9,0.00015068,2]
[342250594,1731654647034,-584.06,0.00015068,2]
[342250595,1731654647045,-604.41,0.00015068,2]
[342250596,1731654647055,-500.0,0.00015068,2]
[342250597,1731654647064,-500.0,0.00015068,2]
[342250598,1731654647074,-500.0,0.00015068,2]
[342250599,1731654647083,-500.0,0.00015068,2]
[342250600,1731654647093,-500.0,0.00015068,2]
[342250601,1731654647103,-552.59,0.00015068,2]
[342250602,1731654647114,-500.0,0.00015068,2]
[342250603,1731654647124,-500.0,0.00015068,2]
[342250604,1731654647134,-500.0,0.00015068,2]
[342250605,1731654647144,-500.0,0.00015068,2]
[342250606,1731654647156,-500.0,0.00015068,2]
[342250607,1731654647166,-500.0,0.00015068,2]
[342250608,1731654647176,-700.9,0.00015068,2]
[342250609,1731654647186,-500.0,0.00015068,2]
[342250610,1731654647196,-500.0,0.00015068,2]
[342250611,1731654647206,-500.0,0.00015068,2]
[342250612,1731654647217,-2107.61,0.00015068,2]
[342250613,1731654647226,-500.0,0.00015068,2]
[342250614,1731654647242,-1624.89,0.00015068,2]
[342250615,1731654647253,-1124.9,0.00015068,2]
[342250616,1731654647263,-500.0,0.00015068,2]
[342250617,1731654647274,-3048.96,0.00015068,2]
[342250618,1731654647284,-568.96,0.00015068,2]
[342250619,1731654647293,-813.77,0.00015068,2]
[342250620,1731654647303,-500.0,0.00015068,2]
[342250621,1731654647313,-871.65,0.00015068,2]
[342250622,1731654647323,-689.22,0.00015068,2]
[342250623,1731654647332,-500.0,0.00015068,2]
[342250624,1731654647343,-1242.67,0.00015068,2]
[342250625,1731654647353,-3267.27,0.00015068,2]
[342250626,1731654647363,-944.33,0.00015068,2]
[342250627,1731654647373,-642.35,0.00015068,2]
[342250628,1731654647383,-500.0,0.00015068,2]
[342250629,1731654647392,-500.0,0.00015068,2]
[342250630,1731654647403,-6369.13,0.00015068,2]
[342250631,1731654647412,-1669.53,0.00015068,2]
[342250632,1731654647422,-500.0,0.00015068,2]
[342250633,1731654647432,-860.9,0.00015068,2]
[342250634,1731654647442,-151.0,0.00015068,2]
[342250635,1731654647451,-151.0,0.00015068,2]
[342250636,1731654647461,-182.332783,0.00015068,2]
[342250637,1731654647472,-500.0,0.00015068,2]
[342250638,1731654647485,-182.332783,0.00015068,2]
[342250639,1731654647495,-500.0,0.00015068,2]
[342250640,1731654647508,-716.58,0.00015068,2]
[342250641,1731654647518,-610.43,0.00015068,2]
[342250642,1731654647528,-182.332783,0.00015068,2]
[342250643,1731654647537,-182.332783,0.00015068,2]
[342250644,1731654647547,-500.0,0.00015068,2]
[342250645,1731654647557,-500.0,0.00015068,2]
[342250646,1731654647566,-6076.35,0.00015068,2]
[342250647,1731654647578,-532.03,0.00015068,2]
[342250648,1731654647589,-151.0,0.00015068,2]
[342250649,1731654647599,-552.47,0.00015068,2]
[342250650,1731654647610,-151.0,0.00015068,2]
[342250651,1731654647621,-814.89,0.00015068,2]
[342250652,1731654647630,-3259.65,0.00015068,2]
[342250653,1731654647640,-519.43,0.00015068,2]
[342250654,1731654647650,-1510.18,0.00015068,2]
[342250655,1731654647661,-20517.05,0.00015068,2]
[342250656,1731654647671,-815.29,0.00015068,2]
[342250657,1731654647682,-3232.98,0.00015068,2]
[342250658,1731654647692,-212.277673,0.00015068,2]
[342250659,1731654647702,-212.277673,0.00015068,2]
[342250660,1731654647713,-500.0,0.00015068,2]
[342250661,1731654647723,-20385.96,0.00015068,2]
[342250662,1731654647734,-500.0,0.00015068,2]
[342250663,1731654647743,-233.160755,0.00015068,2]
[342250664,1731654647753,-500.0,0.00015068,2]
[342250665,1731654647763,-542.01,0.00015068,2]
[342250666,1731654647772,-233.160755,0.00015068,2]
[342250667,1731654647782,-500.0,0.00015068,2]
[342250668,1731654647791,-1586.05,0.00015068,2]
[342250669,1731654647801,-514.35,0.00015068,2]
[342250670,1731654647811,-1081.409012,0.00015068,2]
[342250671,1731654647820,-500.0,0.00015098,2]
[342250672,1731654647830,-500.0,0.00015098,2]
[342250673,1731654647840,-1000.0,0.00015121,2]
[342250674,1731654647849,-501.06109935,0.00015126,2]
[342250675,1731654647859,-859.496854,0.0001521,2]
[342250676,1731654647869,-859.496854,0.0001521,2]
[342250677,1731654647879,-151.0,0.0001521,2]
[342250678,1731654647889,-1829.417,0.00015219,2]
[342250679,1731654647899,-509.77628521,0.00015261,2]
[342250680,1731654647909,-500.0,0.00015325,2]
[342250681,1731654647919,-587.0,0.00015333,2]
[342250682,1731654647929,-500.0,0.00015342,2]
[342250683,1731654647939,-579.73,0.00015342,2]
[342250684,1731654647950,-500.0,0.00015342,2]
[342250685,1731654647963,-158.44629662,0.00015342,2]
[342250686,1731654647984,-310.5950237,0.00015342,2]
[342250687,1731654648004,-500.0,0.00015342,2]
[342250688,1731654648026,-503.96,0.00015342,2]
[342250689,1731654648044,-528.3,0.00015342,2]
[342250690,1731654648056,-527.12,0.00015342,2]
[342250691,1731654648067,-518.6,0.00015342,2]
[342250692,1731654648078,-500.0,0.00015342,2]
[342250693,1731654648089,-500.0,0.00015342,2]
[342250694,1731654648101,-691.77,0.00015342,2]
[342250695,1731654648238,-500.0,0.00015342,2]
[342250696,1731654648249,-500.0,0.00015342,2]
[342250697,1731654648260,-500.0,0.00015342,2]
[342250698,1731654648270,-500.0,0.00015342,2]
[342250699,1731654648280,-500.0,0.00015342,2]
[342250700,1731654648290,-516.72,0.00015342,2]
[342250701,1731654648300,-500.0,0.00015342,2]
[342250702,1731654648310,-534.01937087,0.00015342,2]
[342250703,1731654648319,-2110.93,0.00015342,2]
[342250704,1731654648329,-678.65,0.00015342,2]
[342250705,1731654648339,-500.0,0.00015342,2]
[342250706,1731654648348,-500.0,0.00015342,2]
[342250707,1731654648358,-500.0,0.00015342,2]
[342250708,1731654648369,-209.5186952,0.00015342,2]
[342250709,1731654648379,-500.0,0.00015342,2]
[342250710,1731654648388,-1033.95,0.00015342,2]
[342250711,1731654648399,-1306.17,0.00015342,2]
[342250712,1731654648408,-1263.29,0.00015342,2]
[342250713,1731654648418,-500.0,0.00015342,2]
[342250714,1731654648428,-2127.12,0.00015342,2]
[342250715,1731654648438,-500.0,0.00015342,2]
[342250716,1731654648448,-512.52,0.00015342,2]
[342250717,1731654648457,-500.0,0.00015342,2]
[342250718,1731654648467,-568.02892298,0.00015342,2]
[342250719,1731654648477,-1629.51,0.00015342,2]
[342250720,1731654648488,-1431.45,0.00015342,2]
[342250721,1731654648502,-826.96,0.00015342,2]
[342250722,1731654648511,-571.98,0.00015342,2]
[342250723,1731654648520,-368.07837245,0.00015342,2]
[342250724,1731654648531,-588.9,0.00015342,2]
[342250725,1731654648541,-584.06,0.00015342,2]
[342250726,1731654648551,-604.41,0.00015342,2]
[342250727,1731654648561,-500.0,0.00015342,2]
[342250728,1731654648571,-500.0,0.00015342,2]
[342250729,1731654648583,-500.0,0.00015342,2]
[342250730,1731654648592,-500.0,0.00015342,2]
[342250731,1731654648602,-189.26129941,0.00015342,2]
[342250732,1731654648612,-552.59,0.00015342,2]
[342250733,1731654648622,-649.04344785,0.00015342,2]
[342250734,1731654648632,-500.0,0.00015342,2]
[342250735,1731654648642,-500.0,0.00015342,2]
[342250736,1731654648652,-500.0,0.00015342,2]
[342250737,1731654648661,-500.0,0.00015342,2]
[342250738,1731654648670,-500.0,0.00015342,2]
[342250739,1731654648680,-700.9,0.00015342,2]
[342250740,1731654648690,-500.0,0.00015342,2]
[342250741,1731654648699,-500.0,0.00015342,2]
[342250742,1731654648709,-500.0,0.00015342,2]
[342250743,1731654648718,-2107.61,0.00015342,2]
[342250744,1731654648728,-500.0,0.00015342,2]
[342250745,1731654648740,-1624.89,0.00015342,2]
[342250746,1731654648749,-1124.9,0.00015342,2]
[342250747,1731654648759,-500.0,0.00015342,2]
[342250748,1731654648768,-3048.96,0.00015342,2]
[342250749,1731654648778,-568.96,0.00015342,2]
[342250750,1731654648787,-813.77,0.00015342,2]
[342250751,1731654648797,-500.0,0.00015342,2]
[342250752,1731654648807,-871.65,0.00015342,2]
[342250753,1731654648816,-689.22,0.00015342,2]
[342250754,1731654648826,-500.0,0.00015342,2]
[342250755,1731654648840,-1242.67,0.00015342,2]
[342250756,1731654648850,-3267.27,0.00015342,2]
[342250757,1731654648859,-944.33,0.00015342,2]
[342250758,1731654648869,-642.35,0.00015342,2]
[342250759,1731654648879,-500.0,0.00015342,2]
[342250760,1731654648889,-500.0,0.00015342,2]
[342250761,1731654648904,-6369.13,0.00015342,2]
[342250762,1731654648913,-1669.53,0.00015342,2]
[342250763,1731654648922,-500.0,0.00015342,2]
[342250764,1731654648932,-860.9,0.00015342,2]
[342250765,1731654648942,-151.0,0.00015342,2]
[342250766,1731654648951,-500.0,0.00015342,2]
[342250767,1731654648961,-182.332783,0.00015342,2]
[342250768,1731654648970,-500.0,0.00015342,2]
[342250769,1731654648980,-610.43,0.00015342,2]
[342250770,1731654648991,-716.58,0.00015342,2]
[342250771,1731654649001,-182.332783,0.00015342,2]
[342250772,1731654649011,-500.0,0.00015342,2]
[342250773,1731654649022,-420.43265856,0.00015342,2]
[342250774,1731654649031,-6076.35,0.00015342,2]
[342250775,1731654649041,-532.03,0.00015342,2]
[342250776,1731654649051,-552.47,0.00015342,2]
[342250777,1731654649060,-151.0,0.00015342,2]
[342250778,1731654649069,-814.89,0.00015342,2]
[342250779,1731654649079,-3259.65,0.00015342,2]
[342250780,1731654649088,-519.43,0.00015342,2]
[342250781,1731654649097,-1510.18,0.00015342,2]
[342250782,1731654649106,-20517.05,0.00015342,2]
[342250783,1731654649116,-815.29,0.00015342,2]
[342250784,1731654649126,-3232.98,0.00015342,2]
[342250785,1731654649135,-212.277673,0.00015342,2]
[342250786,1731654649144,-212.277673,0.00015342,2]
[342250787,1731654649154,-500.0,0.00015342,2]
[342250788,1731654649164,-20385.96,0.00015342,2]
[342250789,1731654649173,-500.0,0.00015342,2]
[342250790,1731654649182,-233.160755,0.00015342,2]
[342250791,1731654649191,-500.0,0.00015342,2]
[342250792,1731654649201,-542.01,0.00015342,2]
[342250793,1731654649211,-233.160755,0.00015342,2]
[342250794,1731654649220,-203.39085328,0.00015342,2]
[342250795,1731654649229,-1586.05,0.00015342,2]
[342250796,1731654649240,-514.35,0.00015342,2]
[342250797,1731654649250,-409.0,0.000155,4]
[342250798,1731654649259,-400.0,0.000155,4]
[342250799,1731654649269,-500.0,0.00015616,2]
[342250800,1731654649278,-579.73,0.00015616,2]
[342250801,1731654649288,-472.78872287,0.00015616,2]
[342250802,1731654649298,-500.0,0.00015616,2]
[342250803,1731654649307,-503.96,0.00015616,2]
[342250804,1731654649316,-528.3,0.00015616,2]
[342250805,1731654649326,-527.12,0.00015616,2]
[342250806,1731654649335,-518.6,0.00015616,2]
[342250807,1731654649344,-382.3760248,0.00015616,2]
[342250808,1731654649354,-500.0,0.00015616,2]
[342250809,1731654649364,-691.77,0.00015616,2]
[342250810,1731654649375,-500.0,0.00015616,2]
[342250811,1731654649389,-500.0,0.00015616,2]
[342250812,1731654649398,-500.0,0.00015616,2]
[342250813,1731654649413,-500.0,0.00015616,2]
[342250814,1731654649428,-500.0,0.00015616,2]
[342250815,1731654649438,-516.72,0.00015616,2]
[342250816,1731654649448,-217.09208365,0.00015616,2]
[342250817,1731654649458,-2110.93,0.00015616,2]
[342250818,1731654649468,-678.65,0.00015616,2]
[342250819,1731654649478,-500.0,0.00015616,2]
[342250820,1731654649489,-500.0,0.00015616,2]
[342250821,1731654649499,-500.0,0.00015616,2]
[342250822,1731654649511,-500.0,0.00015616,2]
[342250823,1731654649521,-1033.95,0.00015616,2]
[342250824,1731654649530,-1306.17,0.00015616,2]
[342250825,1731654649540,-1263.29,0.00015616,2]
[342250826,1731654649550,-500.0,0.00015616,2]
[342250827,1731654649560,-2127.12,0.00015616,2]
[342250828,1731654649570,-500.0,0.00015616,2]
[342250829,1731654649580,-512.52,0.00015616,2]
[342250830,1731654649589,-500.0,0.00015616,2]
[342250831,1731654649599,-1629.51,0.00015616,2]
[342250832,1731654649609,-1431.45,0.00015616,2]
[342250833,1731654649619,-826.96,0.00015616,2]
[342250834,1731654649629,-571.98,0.00015616,2]
[342250835,1731654649639,-588.9,0.00015616,2]
[342250836,1731654649649,-584.06,0.00015616,2]
[342250837,1731654649659,-604.41,0.00015616,2]
[342250838,1731654649669,-500.0,0.00015616,2]
[342250839,1731654649679,-264.02609288,0.00015616,2]
[342250840,1731654649689,-500.0,0.00015616,2]
[342250841,1731654649699,-500.0,0.00015616,2]
[342250842,1731654649709,-552.59,0.00015616,2]
[342250843,1731654649719,-449.29245561,0.00015616,2]
[342250844,1731654649729,-500.0,0.00015616,2]
[342250845,1731654649739,-500.0,0.00015616,2]
[342250846,1731654649749,-500.0,0.00015616,2]
[342250847,1731654649758,-500.0,0.00015616,2]
[342250848,1731654649767,-700.9,0.00015616,2]
[342250849,1731654649777,-500.0,0.00015616,2]
[342250850,1731654649786,-500.0,0.00015616,2]
[342250851,1731654649796,-500.0,0.00015616,2]
[342250852,1731654649806,-2107.61,0.00015616,2]
[342250853,1731654649815,-500.0,0.00015616,2]
[342250854,1731654649824,-1624.89,0.00015616,2]
[342250855,1731654649834,-1124.9,0.00015616,2]
[342250856,1731654649843,-500.0,0.00015616,2]
[342250857,1731654649853,-3048.96,0.00015616,2]
[342250858,1731654649863,-568.96,0.00015616,2]
[342250859,1731654649872,-813.77,0.00015616,2]
[342250860,1731654649881,-500.0,0.00015616,2]
[342250861,1731654649892,-871.65,0.00015616,2]
[342250862,1731654649901,-689.22,0.00015616,2]
[342250863,1731654649910,-500.0,0.00015616,2]
[342250864,1731654649920,-1242.67,0.00015616,2]
[342250865,1731654649929,-3267.27,0.00015616,2]
[342250866,1731654649939,-944.33,0.00015616,2]
[342250867,1731654649948,-642.35,0.00015616,2]
[342250868,1731654649958,-859.496854,0.00015616,2]
[342250869,1731654649967,-859.496854,0.00015616,2]
[342250870,1731654649976,-511.64359449,0.00015616,2]
[342250871,1731654649987,-500.0,0.00015616,2]
[342250872,1731654649996,-6369.13,0.00015616,2]
[342250873,1731654650005,-151.0,0.00015616,2]
[342250874,1731654650015,-1669.53,0.00015616,2]
[342250875,1731654650024,-500.0,0.00015616,2]
[342250876,1731654650033,-860.9,0.00015616,2]
[342250877,1731654650044,-151.0,0.00015616,2]
[342250878,1731654650055,-457.58,0.00015616,2]
[342250879,1731654650064,-182.332783,0.00015616,2]
[342250880,1731654650075,-418.39255893,0.00015616,2]
[342250881,1731654650084,-716.58,0.00015616,2]
[342250882,1731654650094,-610.43,0.00015616,2]
[342250883,1731654650103,-182.332783,0.00015616,2]
[342250884,1731654650113,-500.0,0.00015616,2]
[342250885,1731654650122,-6076.35,0.00015616,2]
[342250886,1731654650132,-532.03,0.00015616,2]
[342250887,1731654650141,-226.073742,0.00015616,2]
[342250888,1731654650150,-814.89,0.00015616,2]
[342250889,1731654650160,-552.47,0.00015616,2]
[342250890,1731654650170,-3259.65,0.00015616,2]
[342250891,1731654650181,-519.43,0.00015616,2]
[342250892,1731654650196,-1510.18,0.00015616,2]
[342250893,1731654650207,-20517.05,0.00015616,2]
[342250894,1731654650217,-815.29,0.00015616,2]
[342250895,1731654650226,-3232.98,0.00015616,2]
[342250896,1731654650238,-212.277673,0.00015616,2]
[342250897,1731654650248,-212.277673,0.00015616,2]
[342250898,1731654650257,-500.0,0.00015616,2]
[342250899,1731654650267,-20385.96,0.00015616,2]
[342250900,1731654650278,-500.0,0.00015616,2]
[342250901,1731654650291,-233.160755,0.00015616,2]
[342250902,1731654650302,-500.0,0.00015616,2]
[342250903,1731654650312,-542.01,0.00015616,2]
[342250904,1731654650321,-233.160755,0.00015616,2]
[342250905,1731654650331,-1586.05,0.00015616,2]
[342250906,1731654650340,-514.35,0.00015616,2]
[342250907,1731654650349,-150.203,0.00015617,2]
[342250908,1731654650359,-150.177,0.00015617,2]
[342250909,1731654650368,-150.413,0.00015617,2]
[342250910,1731654650377,-512.95382663,0.00015646,2]
[342250911,1731654650386,-1000.0,0.00015646,2]
[342250912,1731654650395,-150.07697375,0.00015678,2]
[342250913,1731654650404,-150.24195003,0.00015678,2]
[342250914,1731654650414,-150.05,0.00015678,2]
[342250915,1731654650423,-500.0,0.00015678,2]
[342250916,1731654650433,-291.38108906,0.00015678,2]
[342250917,1731654650442,-150.05,0.00015678,2]
[342250918,1731654650451,-150.05,0.00015678,2]